fUSD/lending_fUSD_20250705
["ID","MTS","AMOUNT","RATE_DAILY","PERIOD"]
[369648478,1751673808601,2808.0,0.00030137,120]
[369648480,1751673813108,1074.43,0.00030137,120]
[369648483,1751673929014,154.51,0.00013699,2]
[369648485,1751673991234,150.0,0.00029051,120]
[369648489,1751674170743,150.0,0.00029361,120]
[369648493,1751674231998,-666.0,0.00019703,2]
[369648494,1751674232008,-5000.0,0.0001972,2]
[369648495,1751674232018,-1200.0,0.00019777,2]
[369648496,1751674232028,-3665.16,0.00019778,2]
[369648497,1751674232037,-300.0,0.00019835,2]
[369648498,1751674232047,-263.0,0.00019836,2]
[369648499,1751674232057,-1000.0,0.00019837,2]
[369648500,1751674232066,-23900.0,0.00019849,2]
[369648501,1751674232076,-250.0,0.00020272,2]
[369648502,1751674232086,-1651.15,0.00020319,2]
[369648503,1751674232095,-395.2,0.00020359,2]
[369648504,1751674232104,-200.0,0.00020428,2]
[369648505,1751674232114,-2751.0,0.00020475,2]
[369648506,1751674232123,-207.4,0.00020488,2]
[369648507,1751674232132,-150.0,0.00020499,2]
[369648508,1751674232142,-3974.6915,0.000205,2]
[369648509,1751674232151,-2500.0,0.000205,2]
[369648510,1751674232161,-523.94303595,0.00020539,2]
[369648511,1751674232170,-3775.59015173,0.00020539,2]
[369648512,1751674232180,-233.78348218,0.00020539,2]
[369648513,1751674232189,-200.0,0.00020559,2]
[369648514,1751674232199,-17131.43,0.00020598,2]
[369648515,1751674232209,-500.0,0.00020599,2]
[369648516,1751674232218,-500.0,0.00020599,2]
[369648517,1751674232227,-429.08454,0.00020599,2]
[369648518,1751674232237,-500.0,0.00020599,2]
[369648519,1751674232246,-500.0,0.00020599,2]
[369648520,1751674232256,-467.78497322,0.00020599,2]
[369648521,1751674232265,-500.0,0.00020599,2]
[369648522,1751674232276,-500.0,0.00020599,2]
[369648523,1751674232285,-500.0,0.00020599,2]
[369648524,1751674232295,-500.0,0.00020599,2]
[369648525,1751674232305,-21465.41907062,0.000206,4]
[369648527,1751674232316,-799.78915794,0.000206,4]
[369648540,1751674232491,-4133.97393571,0.000206,4]
[369648543,1751674232503,-453.71218423,0.000206,4]
[369648545,1751674232597,-639.16242228,0.000206,4]
[369648546,1751674232612,-435.05356359,0.000206,4]
[369648547,1751674232623,-3142.5,0.000206,4]
[369648548,1751674232634,-5546.95894496,0.000206,4]
[369648549,1751674232646,-550.0,0.000206,4]
[369648550,1751674232658,-355.86,0.000206,4]
[369648551,1751674232669,-2314.62003483,0.000206,4]
[369648552,1751674232732,-547.25853702,0.000206,4]
[369648553,1751674232743,-612.17759608,0.000206,4]
[369648566,1751674238164,-49464.10020869,0.000206,4]
[369648576,1751674238248,-641.11030898,0.000206,4]
[369648702,1751674240402,-293188.30403407,0.000206,4]
[369648703,1751674240412,-370.33623157,0.00020639,2]
[369648704,1751674240422,-1312.8795,0.00020875,2]
[369648705,1751674240432,-1924.01022313,0.000209,4]
[369648706,1751674240441,-151.0,0.00020987,2]
[369648707,1751674240451,-151.0,0.00020987,2]
[369648708,1751674240461,-300.0,0.00020987,2]
[369648709,1751674240470,-500.0,0.00020987,2]
[369648710,1751674240480,-500.0,0.00020987,2]
[369648711,1751674240489,-500.0,0.00020987,2]
[369648712,1751674240499,-160.0,0.00020987,2]
[369648713,1751674240508,-500.0,0.00020987,2]
[369648714,1751674240519,-500.0,0.00020987,2]
[369648715,1751674240532,-500.0,0.00020987,2]
[369648716,1751674240541,-300.0,0.00020987,2]
[369648717,1751674240553,-300.0,0.00020987,2]
[369648718,1751674240563,-500.0,0.00020987,2]
[369648719,1751674240572,-300.0,0.00020987,2]
[369648721,1751674240581,-500.0,0.00020987,2]
[369648723,1751674240591,-300.0,0.00020987,2]
[369648725,1751674240600,-300.0,0.00020987,2]
[369648727,1751674240608,-500.0,0.00020987,2]
[369648728,1751674240617,-300.0,0.00020987,2]
[369648729,1751674240626,-500.0,0.00020987,2]
[369648730,1751674240635,-300.0,0.00020987,2]
[369648731,1751674240644,-500.0,0.00020987,2]
[369648732,1751674240653,-300.0,0.00020987,2]
[369648733,1751674240663,-300.0,0.00020987,2]
[369648734,1751674240672,-300.0,0.00020987,2]
[369648735,1751674240681,-300.0,0.00020987,2]
[369648736,1751674240690,-300.0,0.00020987,2]
[369648737,1751674240699,-200.0,0.00020987,2]
[369648738,1751674240708,-200.0,0.00020987,2]
[369648739,1751674240718,-200.0,0.00020987,2]
[369648740,1751674240727,-200.0,0.00020987,2]
[369648741,1751674240736,-200.0,0.00020987,2]
[369648742,1751674240746,-200.0,0.00020987,2]
[369648743,1751674240755,-500.0,0.00020987,2]
[369648744,1751674240764,-200.0,0.00020987,2]
[369648745,1751674240773,-500.0,0.00020987,2]
[369648746,1751674240782,-200.0,0.00020987,2]
[369648747,1751674240792,-500.0,0.00020987,2]
[369648748,1751674240802,-200.0,0.00020987,2]
[369648749,1751674240812,-500.0,0.00020987,2]
[369648750,1751674240821,-200.0,0.00020987,2]
[369648751,1751674240830,-500.0,0.00020987,2]
[369648752,1751674240840,-200.0,0.00020987,2]
[369648753,1751674240849,-500.0,0.00020987,2]
[369648754,1751674240859,-327.66182867,0.00020987,2]
[369648755,1751674240868,-244.441978,0.00020987,2]
[369648756,1751674240877,-36242.1628,0.00021,2]
[369648757,1751674240887,-1000.0,0.00021,2]
[369648758,1751674240896,-3775.59015167,0.00021009,2]
[369648759,1751674240905,-210.26882792,0.00021041,2]
[369648760,1751674241237,-156.0,0.00021071,2]
[369648761,1751674241272,-754.0,0.00021071,2]
[369648762,1751674241282,-173.37,0.00021139,2]
[369648763,1751674241293,-500.0,0.00021211,2]
[369648764,1751674241302,-500.0,0.0002125,2]
[369648765,1751674241312,-897.05,0.000213,2]
[369648766,1751674241321,-897.05,0.000213,2]
[369648767,1751674241330,-500.0,0.00021373,2]
[369648768,1751674241340,-620.48586492,0.00021373,2]
[369648769,1751674241349,-500.0,0.00021373,2]
[369648770,1751674241358,-500.0,0.00021373,2]
[369648771,1751674241367,-500.0,0.00021373,2]
[369648772,1751674241377,-555.62272909,0.00021373,2]
[369648773,1751674241386,-500.0,0.00021373,2]
[369648774,1751674241396,-500.0,0.00021373,2]
[369648775,1751674241406,-199.52540654,0.00021399,2]
[369648776,1751674241415,-500.0,0.00021399,2]
[369648777,1751674241425,-264.35026101,0.00021399,2]
[369648778,1751674241434,-500.0,0.00021399,2]
[369648779,1751674241444,-500.0,0.00021399,2]
[369648780,1751674241454,-500.0,0.00021399,2]
[369648781,1751674241464,-517.97098816,0.00021399,2]
[369648782,1751674241473,-500.0,0.00021399,2]
[369648783,1751674241483,-500.0,0.00021399,2]
[369648784,1751674241492,-500.0,0.00021399,2]
[369648785,1751674241502,-500.0,0.00021399,2]
[369648786,1751674241511,-500.0,0.00021399,2]
[369648787,1751674241521,-500.0,0.00021399,2]
[369648788,1751674241531,-258.62324037,0.00021399,2]
[369648789,1751674241541,-500.0,0.00021399,2]
[369648790,1751674241551,-500.0,0.00021399,2]
[369648791,1751674241561,-500.0,0.00021399,2]
[369648792,1751674241572,-500.0,0.00021399,2]
[369648793,1751674241581,-500.0,0.00021399,2]
[369648794,1751674241591,-500.0,0.00021399,2]
[369648795,1751674241600,-500.0,0.00021399,2]
[369648796,1751674241609,-500.0,0.00021399,2]
[369648797,1751674241619,-218.623952,0.00021399,2]
[369648798,1751674241628,-188602.6586,0.000214,2]
[369648799,1751674241637,-897.05,0.000214,2]
[369648800,1751674241646,-897.05,0.000214,2]
[369648801,1751674241656,-3775.59015167,0.00021478,2]
[369648802,1751674241665,-897.05,0.000215,2]
[369648803,1751674241674,-1924.0102229,0.00021521,5]
[369648804,1751674241684,-300.0,0.00021535,2]
[369648805,1751674241693,-204.05476633,0.00021552,2]
[369648806,1751674241702,-67294.61835743,0.000216,3]
[369648807,1751674241773,-12705.98837089,0.000216,3]
[369648808,1751674241782,-210.26882792,0.000216,3]
[369648809,1751674241791,-168.0,0.00021652,2]
[369648810,1751674241801,-168.0,0.00021653,2]
[369648811,1751674241811,-168.0,0.00021682,2]
[369648812,1751674241820,-700.0,0.000217,7]
[369648813,1751674241830,-5000.0,0.000217,2]
[369648814,1751674241840,-1150.0,0.00021748,2]
[369648815,1751674241849,-200.0,0.00021762,2]
[369648816,1751674241858,-2399.33833,0.00021787,2]
[369648817,1751674241929,-18.16467,0.00021787,2]
[369648818,1751674241940,-1500.0,0.000218,7]
[369648819,1751674241958,-20000.0,0.000218,3]
[369648820,1751674241967,-210.26882792,0.000218,3]
[369648821,1751674241977,-215.0738,0.00021857,2]
[369648822,1751674241986,-246.0,0.00021899,2]
[369648823,1751674241997,-200.0,0.00021899,2]
[369648824,1751674242006,-150.0,0.00021899,2]
[369648825,1751674242015,-150.0,0.00021899,2]
[369648826,1751674242030,-949.0,0.00021899,2]
[369648827,1751674242039,-3342.0,0.00021899,2]
[369648828,1751674242052,-640.0,0.00021899,2]
[369648829,1751674242062,-805.0,0.00021899,2]
[369648830,1751674242071,-2010.0,0.00021899,2]
[369648831,1751674242081,-428.942,0.00021899,2]
[369648832,1751674242090,-1681.0,0.00021899,2]
[369648833,1751674242100,-2200.0,0.000219,7]
[369648834,1751674242110,-660.0,0.000219,2]
[369648835,1751674242119,-151.0,0.00021915,2]
[369648836,1751674242129,-755.68181,0.00021915,2]
[369648837,1751674242138,-755.68181,0.00021915,2]
[369648838,1751674242147,-5000.0,0.00021918,2]
[369648839,1751674242157,-74.02784324,0.0002192,2]
[369648840,1751674242169,-312.97215676,0.0002192,2]
[369648841,1751674242179,-1000.0,0.00021921,2]
[369648842,1751674242189,-1000.0,0.00021921,2]
[369648843,1751674242198,-1000.0,0.00021921,2]
[369648844,1751674242208,-500.0,0.00021921,2]
[369648845,1751674242217,-1000.0,0.00021921,2]
[369648846,1751674242227,-168.0,0.00021922,2]
[369648847,1751674242236,-716.574427,0.00021927,4]
[369648848,1751674242246,-3775.59015167,0.00021948,2]
[369648849,1751674242256,-1346.72065736,0.00022,2]
[369648850,1751674242267,-1436.2988524,0.00022,2]
[369648851,1751674242279,-552.06049024,0.00022,2]
[369648852,1751674242289,-441.0,0.00022,2]
[369648853,1751674242298,-671.0,0.00022,2]
[369648854,1751674242308,-154.0,0.00022,7]
[369648855,1751674242317,-618.54250682,0.00022059,2]
[369648856,1751674242327,-150.64,0.00022059,2]
[369648857,1751674242336,-150.64,0.00022059,2]
[369648858,1751674242346,-150.64,0.00022059,2]
[369648859,1751674242356,-1566.04521055,0.0002207,2]
[369648873,1751674243605,-646.1049715,0.0002207,2]
[369648877,1751674245861,-975.43981795,0.0002207,2]
[369648878,1751674245871,-300.0,0.00022083,2]
[369648879,1751674245881,-1924.0102229,0.00022141,6]
[369648880,1751674245891,-35746.99489364,0.00022142,3]
[369648881,1751674245905,-40815.18598368,0.00022142,3]
[369648882,1751674245919,-22257.19453287,0.00022142,3]
[369648883,1751674245960,-8978.78593272,0.00022142,3]
[369648884,1751674245972,-331.70492421,0.00022142,3]
[369648885,1751674246162,-67585.85318373,0.00022142,3]
[369648896,1751674350771,150.0,0.0002399,120]
[369648897,1751674392392,2000.0,0.00025353,120]
[369648898,1751674411034,150.0,0.00026424,120]
[369648899,1751674470498,154.0,0.00030137,120]
[369648900,1751674470942,150.0,0.00025656,120]
[369648901,1751674531280,150.0,0.00026788,120]
[369648902,1751674591486,150.0,0.00026346,120]
[369648903,1751674702354,6687.18,0.00010959,2]
[369648904,1751674702375,3243.90434128,0.00010959,2]
[369648905,1751674710794,150.0,0.00027731,120]
[369648906,1751675089659,4756.09565872,0.00013537,2]
[369648907,1751675089682,1043.90434128,0.00013537,2]
[369648908,1751675096873,-516.0,0.00017152,2]
[369648909,1751675107944,6956.09565872,0.00014,2]
[369648910,1751675107966,8000.0,0.00014,2]
[369648911,1751675107988,8000.0,0.00014,2]
[369648912,1751675108011,8000.0,0.00014,2]
[369648913,1751675108033,8000.0,0.00014,2]
[369648914,1751675108377,8000.0,0.00014,2]
[369648915,1751675108441,8000.0,0.00014,2]
[369648916,1751675108465,8000.0,0.00014,2]
[369648917,1751675108489,8000.0,0.00014,2]
[369648918,1751675108514,8000.0,0.00014,2]
[369648919,1751675108536,8000.0,0.00014,2]
[369648920,1751675108558,8000.0,0.00014,2]
[369648921,1751675108585,944475.64457206,0.00014,2]
[369648922,1751675112125,5800.0,0.00013529,2]
[369648923,1751675135134,5800.0,0.0001352,2]
[369648924,1751675140396,683.0,0.0003013,120]
[369648949,1751675432530,-1361.25202705,0.00018152,2]
[369648950,1751675432540,-201.24032467,0.0001883,2]
[369648951,1751675432556,-314.75967533,0.0001883,2]
[369648952,1751675432565,-137.69739152,0.00019178,2]
[369648953,1751675432611,-30.69141408,0.00019178,2]
[369648954,1751675432620,-1524.33525564,0.00019658,2]
[369648955,1751675432631,-1058.407355,0.00019658,2]
[369648956,1751675432642,-372.99804426,0.00019658,2]
[369648957,1751675432654,-1849.95042858,0.00019658,2]
[369648958,1751675432665,-3188.1155704,0.00019658,2]
[369648959,1751675432676,-849.83407237,0.00019658,2]
[369648960,1751675432688,-974.4271826,0.00019658,2]
[369648961,1751675432716,-600.0,0.00019658,2]
[369648962,1751675432727,-1047.40476293,0.00019658,2]
[369648963,1751675432738,-454.9292423,0.00019658,2]
[369648964,1751675432750,-770.95722151,0.00019658,2]
[369648968,1751675437861,-7069.34051972,0.00019658,2]
[369648969,1751675437873,-4139.30034469,0.00019658,2]
[369648970,1751675437882,-666.0,0.00019662,2]
[369648978,1751675438130,-159.29,0.00019662,2]
[369648983,1751675438243,-1000.0,0.00019716,2]
[369648985,1751675438253,-1241.70965531,0.00020314,2]
[369649000,1751675438340,-59.26825096,0.00020314,2]
[369649003,1751675438350,-2092.27626672,0.00020372,2]
[369649005,1751675438361,-1247.05674392,0.00020372,2]
[369649011,1751675438411,-3763.87084656,0.00020372,2]
[369649013,1751675438420,-1300.97790626,0.00020399,2]
[369649015,1751675438430,-1789.1409,0.000204,2]
[369649017,1751675438439,-523.94303594,0.00020443,2]
[369649019,1751675438448,-9003.27646549,0.00020443,2]
[369649021,1751675438458,-500.0,0.00020473,2]
[369649023,1751675438468,-500.0,0.00020473,2]
[369649025,1751675438477,-500.0,0.00020473,2]
[369649027,1751675438488,-533.9800184,0.00020473,2]
[369649029,1751675438498,-500.0,0.00020473,2]
[369649031,1751675438507,-500.0,0.00020473,2]
[369649033,1751675438517,-500.0,0.00020473,2]
[369649035,1751675438526,-501.98368603,0.00020473,2]
[369649037,1751675438536,-500.0,0.00020473,2]
[369649039,1751675438546,-500.0,0.00020473,2]
[369649041,1751675438556,-188.72714989,0.00020473,2]
[369649043,1751675438566,-500.0,0.00020473,2]
[369649045,1751675438576,-500.0,0.00020473,2]
[369649047,1751675438588,-501.219381,0.00020473,2]
[369649049,1751675438598,-555.62272909,0.00020473,2]
[369649051,1751675438609,-500.0,0.00020473,2]
[369649053,1751675438619,-1000.0,0.00020488,2]
[369649055,1751675438630,-151.0,0.00020488,2]
[369649057,1751675438639,-1000.0,0.00020488,2]
[369649059,1751675438648,-1000.0,0.00020488,2]
[369649061,1751675438657,-1000.0,0.00020488,2]
[369649063,1751675438667,-1000.0,0.00020488,2]
[369649065,1751675438677,-1000.0,0.00020488,2]
[369649067,1751675438686,-238.41326466,0.00020488,2]
[369649069,1751675438695,-151.0,0.00020488,2]
[369649071,1751675438704,-1000.0,0.00020488,2]
[369649073,1751675438713,-225.73678425,0.00020488,2]
[369649077,1751675438743,-607.36629238,0.00020488,2]
[369649144,1751675440001,-166.89692337,0.00020488,2]
[369649145,1751675440010,-863.18310682,0.00020488,2]
[369649146,1751675440022,-136.81689318,0.00020488,2]
[369649147,1751675440031,-1000.0,0.00020488,2]
[369649148,1751675440040,-355.58310662,0.00020488,2]
[369649149,1751675440052,-644.41689338,0.00020488,2]
[369649150,1751675440061,-300.0,0.00020488,2]
[369649151,1751675440070,-1000.0,0.00020488,2]
[369649152,1751675440079,-6316.55655122,0.00020488,2]
[369649153,1751675440090,-596.08544878,0.00020488,2]
[369649154,1751675440100,-668.65185757,0.00020488,2]
[369649155,1751675440110,-207.4,0.00020488,2]
[369649156,1751675440119,-200.0,0.00020488,2]
[369649157,1751675440129,-173.48437015,0.00020488,2]
[369649158,1751675440139,-200.0,0.00020488,2]
[369649159,1751675440148,-200.0,0.00020488,2]
[369649160,1751675440158,-1000.0,0.00020488,2]
[369649161,1751675440167,-200.0,0.00020488,2]
[369649162,1751675440177,-1000.0,0.00020488,2]
[369649163,1751675440186,-200.0,0.00020488,2]
[369649164,1751675440195,-1000.0,0.00020488,2]
[369649165,1751675440204,-200.0,0.00020488,2]
[369649166,1751675440213,-1000.0,0.00020488,2]
[369649167,1751675440222,-200.0,0.00020488,2]
[369649168,1751675440231,-500.0,0.00020488,2]
[369649169,1751675440241,-1000.0,0.00020488,2]
[369649170,1751675440252,-200.0,0.00020488,2]
[369649171,1751675440261,-500.0,0.00020488,2]
[369649172,1751675440271,-1000.0,0.00020488,2]
[369649173,1751675440280,-300.0,0.00020488,2]
[369649174,1751675440289,-200.0,0.00020488,2]
[369649175,1751675440298,-500.0,0.00020488,2]
[369649176,1751675440308,-200.0,0.00020488,2]
[369649177,1751675440317,-300.0,0.00020488,2]
[369649178,1751675440326,-1000.0,0.00020488,2]
[369649179,1751675440336,-500.0,0.00020488,2]
[369649180,1751675440345,-500.0,0.00020488,2]
[369649181,1751675440354,-200.0,0.00020488,2]
[369649182,1751675440363,-300.0,0.00020488,2]
[369649183,1751675440372,-1000.0,0.00020488,2]
[369649184,1751675440381,-500.0,0.00020488,2]
[369649185,1751675440391,-500.0,0.00020488,2]
[369649186,1751675440401,-300.0,0.00020488,2]
[369649187,1751675440410,-500.0,0.00020488,2]
[369649189,1751675440420,-500.0,0.00020488,2]
[369649190,1751675440429,-300.0,0.00020488,2]
[369649191,1751675440438,-500.0,0.00020488,2]
[369649192,1751675440448,-500.0,0.00020488,2]
[369649193,1751675440457,-300.0,0.00020488,2]
[369649194,1751675440466,-500.0,0.00020488,2]
[369649195,1751675440475,-500.0,0.00020488,2]
[369649196,1751675440484,-300.0,0.00020488,2]
[369649197,1751675440494,-500.0,0.00020488,2]
[369649198,1751675440503,-187.65836149,0.00020488,2]
[369649199,1751675440512,-300.0,0.00020488,2]
[369649200,1751675440522,-151.0,0.00020488,2]
[369649201,1751675440532,-500.0,0.00020488,2]
[369649202,1751675440541,-500.0,0.00020488,2]
[369649203,1751675440550,-300.0,0.00020488,2]
[369649204,1751675440559,-500.0,0.00020488,2]
[369649205,1751675440569,-500.0,0.00020488,2]
[369649206,1751675440578,-300.0,0.00020488,2]
[369649207,1751675440589,-500.0,0.00020488,2]
[369649208,1751675440598,-300.0,0.00020488,2]
[369649209,1751675440607,-500.0,0.00020488,2]
[369649210,1751675440616,-165.438588,0.00020488,2]
[369649211,1751675440626,-500.0,0.00020488,2]
[369649212,1751675440635,-151.0,0.00020488,2]
[369649213,1751675440644,-500.0,0.00020488,2]
[369649214,1751675440653,-151.0,0.00020488,2]
[369649215,1751675440663,-300.0,0.00020488,2]
[369649216,1751675440673,-319.19610564,0.00020488,2]
[369649217,1751675440682,-151.0,0.00020488,2]
[369649218,1751675440691,-153.88345187,0.00020488,2]
[369649219,1751675440700,-300.0,0.00020488,2]
[369649220,1751675440710,-300.0,0.00020488,2]
[369649221,1751675440720,-160.0,0.00020488,2]
[369649222,1751675440729,-300.0,0.00020488,2]
[369649223,1751675440738,-300.0,0.00020488,2]
[369649224,1751675440747,-300.0,0.00020488,2]
[369649225,1751675440757,-300.0,0.00020488,2]
[369649226,1751675440766,-300.0,0.00020488,2]
[369649227,1751675440776,-300.0,0.00020488,2]
[369649228,1751675440785,-300.0,0.00020488,2]
[369649229,1751675440794,-300.0,0.00020488,2]
[369649230,1751675440803,-300.0,0.00020488,2]
[369649231,1751675440812,-500.0,0.00020488,2]
[369649232,1751675440821,-500.0,0.00020488,2]
[369649233,1751675440830,-500.0,0.00020488,2]
[369649234,1751675440840,-500.0,0.00020488,2]
[369649235,1751675440849,-500.0,0.00020488,2]
[369649236,1751675440858,-500.0,0.00020488,2]
[369649237,1751675440867,-500.0,0.00020488,2]
[369649238,1751675440876,-500.0,0.00020488,2]
[369649239,1751675440885,-500.0,0.00020488,2]
[369649240,1751675440894,-500.0,0.00020488,2]
[369649241,1751675440904,-500.0,0.00020488,2]
[369649242,1751675440914,-1302.63069502,0.0002049,2]
[369649243,1751675440927,-8058.94150567,0.0002049,2]
[369649244,1751675440937,-6245.68447076,0.00020499,2]
[369649245,1751675440947,-500.0,0.00020499,2]
[369649246,1751675440956,-500.0,0.00020499,2]
[369649247,1751675440965,-500.0,0.00020499,2]
[369649248,1751675440974,-266.99665791,0.00020499,2]
[369649249,1751675440983,-360.8631945,0.00020499,2]
[369649250,1751675440992,-1000.0,0.000205,2]
[369649251,1751675441001,-4845.7539,0.000205,2]
[369649252,1751675441010,-66424.5666963,0.000205,2]
[369649253,1751675441065,-255.67333895,0.000205,2]
[369649254,1751675441076,-73835.66315272,0.000205,2]
[369649255,1751675441103,-3594.81885109,0.000205,2]
[369649256,1751675441115,-2684.47178802,0.000205,2]
[369649257,1751675441125,-41807.46477292,0.000205,2]
[369649258,1751675441135,-7168.409754,0.00020543,2]
[369649259,1751675441144,-7433.6409149,0.00020598,2]
[369649260,1751675441153,-6869.77104933,0.00020612,2]
[369649261,1751675441162,-2751.0,0.00020614,2]
[369649262,1751675441174,-7708.68562875,0.00020653,2]
[369649263,1751675441183,-250.0,0.0002066,2]
[369649264,1751675441193,-918.72,0.00020678,2]
[369649265,1751675441204,-7993.90699701,0.00020708,2]
[369649266,1751675441213,-528.25,0.00020712,2]
[369649267,1751675441222,-500.0,0.00020726,2]
[369649268,1751675441544,-8289.6815559,0.00020763,2]
[369649269,1751675441563,-8596.39977347,0.00020818,2]
[369649270,1751675441572,-8914.46656509,0.00020873,2]
[369649271,1751675441584,-2389.55959136,0.000209,4]
[369649272,1751675441595,-502.73148682,0.00020921,2]
[369649273,1751675441604,-9003.27646546,0.00020923,2]
[369649274,1751675441614,-9244.301828,0.00020928,2]
[369649275,1751675441623,-238.33443632,0.00020957,2]
[369649276,1751675441634,-9586.34099563,0.00020983,2]
[369649277,1751675441644,-20000.0,0.00021,2]
[369649278,1751675441655,-1162.2509444,0.00021,2]
[369649279,1751675441664,-191.8236364,0.00021,2]
[369649280,1751675441674,-200.27717247,0.00021,2]
[369649281,1751675441684,-210.26882792,0.00021007,2]
[369649282,1751675441693,-1000.0,0.00021021,2]
[369649283,1751675441703,-1000.0,0.00021021,2]
[369649284,1751675441712,-500.0,0.00021021,2]
[369649285,1751675441721,-500.0,0.00021021,2]
[369649286,1751675441730,-300.0,0.00021036,2]
[369649287,1751675441739,-211.01846175,0.00021036,2]
[369649288,1751675441749,-9941.03561247,0.00021038,2]
[369649289,1751675441758,-836.43952577,0.00021043,2]
[369649290,1751675441767,-300.0,0.00021067,2]
[369649291,1751675441776,-2000.0,0.00021067,4]
[369649292,1751675441785,-300.0,0.00021067,2]
[369649293,1751675441795,-2500.0,0.00021067,2]
[369649294,1751675441804,-6869.77104924,0.00021073,2]
[369649295,1751675441814,-10308.85393013,0.00021093,2]
[369649296,1751675441823,-417.0,0.000211,2]
[369649297,1751675441832,-698.29,0.00021103,2]
[369649298,1751675441841,-698.29,0.00021108,2]
[369649299,1751675441851,-698.29,0.00021114,2]
[369649300,1751675441860,-698.29,0.00021119,2]
[369649301,1751675441869,-698.29,0.00021125,2]
[369649302,1751675441879,-679.77660452,0.00021126,2]
[369649303,1751675441888,-698.29,0.0002113,2]
[369649304,1751675441897,-698.29,0.00021136,2]
[369649305,1751675441907,-698.29,0.00021142,2]
[369649306,1751675441916,-698.29,0.00021147,2]
[369649307,1751675441925,-10690.28152555,0.00021148,2]
[369649308,1751675441935,-698.29,0.00021153,2]
[369649309,1751675441945,-698.29,0.00021158,2]
[369649310,1751675441954,-698.29,0.00021164,2]
[369649311,1751675441964,-698.29,0.00021169,2]
[369649312,1751675441973,-698.29,0.00021175,2]
[369649313,1751675441983,-698.29,0.0002118,2]
[369649314,1751675441992,-698.29,0.00021186,2]
[369649315,1751675442001,-698.29,0.00021192,2]
[369649316,1751675442010,-698.29,0.00021197,2]
[369649317,1751675442019,-8706.97341968,0.00021203,2]
[369649318,1751675442028,-698.29,0.00021203,2]
[369649319,1751675442037,-698.29,0.00021208,2]
[369649320,1751675442047,-168.29,0.00021238,2]
[369649321,1751675442056,-1794.11,0.000213,2]
[369649322,1751675442067,-1794.11,0.000213,2]
[369649323,1751675442076,-897.06,0.000213,2]
[369649324,1751675442086,-897.06,0.000213,2]
[369649325,1751675442096,-159.29,0.000213,2]
[369649326,1751675442110,-418.84,0.00021375,7]
[369649327,1751675442120,-500.0,0.00021375,7]
[369649328,1751675442129,-500.0,0.00021375,7]
[369649329,1751675442138,-500.0,0.00021375,7]
[369649330,1751675442147,-500.0,0.00021375,7]
[369649331,1751675442156,-500.0,0.00021375,7]
[369649332,1751675442166,-500.0,0.00021375,7]
[369649333,1751675442174,-500.0,0.00021375,7]
[369649334,1751675442184,-500.0,0.00021375,7]
[369649335,1751675442193,-500.0,0.00021375,7]
[369649336,1751675442202,-500.0,0.00021375,7]
[369649337,1751675442211,-500.0,0.00021375,7]
[369649338,1751675442220,-500.0,0.00021375,7]
[369649339,1751675442232,-500.0,0.00021375,7]
[369649340,1751675442241,-500.0,0.00021375,7]
[369649341,1751675442252,-500.0,0.00021375,7]